bitfinex/quotes_BTCUSD_20241111
["timestamp","ask_amount","ask_price","bid_price","bid_amount"]
[1731349392853,0.16930941,84350.0,84347.0,0.001694]
[1731349393310,0.04236866,84350.0,84347.0,0.001694]
[1731349393761,0.04436866,84350.0,84347.0,0.001694]
[1731349394378,0.16930941,84350.0,84347.0,0.001694]
[1731349395704,0.16925165,84350.0,84347.0,0.001694]
[1731349401082,0.16425165,84350.0,84347.0,0.001694]
[1731349401292,0.0423109,84350.0,84347.0,0.001694]
[1731349401714,0.0443109,84350.0,84347.0,0.001694]
[1731349401917,0.0373109,84350.0,84347.0,0.001694]
[1731349402555,0.0393109,84350.0,84347.0,0.001694]
[1731349402966,0.16425165,84350.0,84347.0,0.001694]
[1731349403436,0.24485165,84350.0,84347.0,0.001694]
[1731349403658,0.28829823,84350.0,84347.0,0.001694]
[1731349404213,0.04694224,84348.0,84347.0,0.00120583]
[1731349404420,0.16925165,84348.0,84347.0,0.00120583]
[1731349406334,0.19225165,84348.0,84347.0,0.00120583]
[1731349406923,0.04694224,84344.0,84343.0,0.0008476]
[1731349407129,0.55843454,84344.0,84343.0,0.0008476]
[1731349407332,0.62360362,84344.0,84343.0,0.0008476]
[1731349407554,0.06994224,84343.0,84342.0,0.09976729]
[1731349407891,0.27439238,84343.0,84342.0,0.09976729]
[1731349408089,0.20098999,84343.0,84342.0,0.09976729]
[1731349408290,0.17562133,84343.0,84342.0,0.09976729]
[1731349408717,0.16688299,84343.0,84342.0,0.09976729]
[1731349408934,0.16925165,84343.0,84342.0,0.09976729]
[1731349409575,0.16688299,84343.0,84342.0,0.09976729]
[1731349410568,0.15688299,84343.0,84342.0,0.09976729]
[1731349410798,0.03494224,84343.0,84342.0,0.10974402]
[1731349411625,0.03494224,84343.0,84342.0,0.08811824]
[1731349413737,0.00494224,84343.0,84342.0,0.08811824]
[1731349413938,0.0373109,84343.0,84342.0,0.08811824]
[1731349414146,0.03494224,84343.0,84342.0,0.08811824]
[1731349414379,0.03,84343.0,84342.0,0.08811824]
[1731349414664,0.03,84343.0,84342.0,0.22413006]
[1731349414973,0.03,84343.0,84342.0,0.34407081]
[1731349415176,0.001697,84350.0,84342.0,0.34407081]
[1731349415177,0.001697,84350.0,84343.0,0.023]
[1731349415404,0.001697,84350.0,84348.0,0.03]
[1731349415612,0.001697,84350.0,84349.0,0.15231152]
[1731349415832,0.001697,84350.0,84349.0,0.14994075]
[1731349416028,0.001697,84350.0,84349.0,0.1751219]
[1731349416717,0.001697,84350.0,84349.0,0.1981219]
[1731349416929,0.001697,84350.0,84349.0,0.32819251]
[1731349417139,0.001697,84350.0,84349.0,0.3258219]
[1731349418327,0.03,84363.0,84351.0,0.1105]
[1731349418490,0.03,84363.0,84362.0,0.29521419]
[1731349418696,0.03,84363.0,84362.0,0.19554075]
[1731349419936,0.03,84363.0,84362.0,0.0756]
[1731349420356,0.03,84363.0,84362.0,0.19554075]
[1731349421644,0.03,84363.0,84362.0,0.30094075]
[1731349421852,0.03,84363.0,84362.0,0.33493372]
[1731349422103,0.03,84363.0,84362.0,0.35410738]
[1731349422317,0.00811096,84380.0,84370.0,0.03]
[1731349422573,0.15565307,84372.0,84371.0,0.17294075]
[1731349422795,0.00811096,84372.0,84371.0,0.17294075]
[1731349423019,0.00811096,84372.0,84371.0,0.1914605]
[1731349423779,0.00811096,84372.0,84371.0,0.45667469]
[1731349424346,0.00811096,84372.0,84371.0,0.1684605]
[1731349426535,0.0130532,84372.0,84371.0,0.03]
[1731349426754,0.00811096,84372.0,84371.0,0.03]
[1731349427408,0.0130532,84372.0,84362.0,0.00067255]
[1731349427619,0.002,84370.0,84362.0,0.00067255]
[1731349427807,0.01047962,84372.0,84362.0,0.00067255]
[1731349427808,0.00236866,84369.0,84362.0,0.00067255]
[1731349428013,0.00236866,84371.0,84362.0,0.00067255]
[1731349428246,0.00811096,84369.0,84362.0,0.00067255]
[1731349428459,0.00236866,84368.0,84362.0,0.00067255]
[1731349429297,0.01047962,84368.0,84362.0,0.00067255]
[1731349429526,0.00811096,84368.0,84362.0,0.00067255]
[1731349429732,0.00811096,84368.0,84363.0,0.02658867]
[1731349430202,0.00811096,84368.0,84367.0,0.26521419]
[1731349430399,0.00811096,84368.0,84367.0,0.51762525]
[1731349430615,0.00811096,84368.0,84367.0,0.53825494]
[1731349431545,0.00980816,84368.0,84367.0,0.53825494]
[1731349431764,0.00980816,84368.0,84367.0,0.56417899]
[1731349431979,0.00980816,84368.0,84367.0,0.10812405]
[1731349432383,0.00980816,84368.0,84367.0,0.0822]
[1731349432611,0.00980816,84368.0,84367.0,0.20214075]
[1731349432817,0.00980816,84368.0,84367.0,0.20451096]
[1731349433725,0.00980816,84368.0,84367.0,0.22514075]
[1731349434590,0.00980816,84368.0,84367.0,0.23014075]
[1731349434830,0.17754211,84390.0,84375.0,0.03]
[1731349435052,0.17754211,84390.0,84381.0,0.32321419]
[1731349435294,0.17742408,84390.0,84387.0,0.005]
[1731349435536,0.12457956,84390.0,84389.0,0.31821419]
[1731349435999,0.17754211,84400.0,84389.0,0.35127258]
[1731349436213,0.17754211,84400.0,84391.0,0.03]
[1731349436508,0.17754211,84400.0,84393.0,0.03]
[1731349436723,0.00236866,84399.0,84393.0,0.03]
[1731349437124,0.0008477,84403.0,84393.0,0.03]
[1731349437487,0.0008477,84403.0,84382.0,0.17754211]
[1731349437488,0.0008477,84403.0,84394.0,0.03]
[1731349437874,0.0008477,84403.0,84396.0,0.03]
[1731349438083,0.17754211,84402.0,84398.0,0.03]
[1731349438292,0.0008477,84403.0,84400.0,0.03]
[1731349440788,0.001,84412.0,84402.0,0.1113]
[1731349441003,0.001,84412.0,84404.0,0.03]
[1731349441227,0.001,84412.0,84406.0,0.03]
[1731349441370,0.001,84412.0,84408.0,0.03]
[1731349443305,0.00536866,84412.0,84408.0,0.03]
[1731349443528,0.001,84412.0,84409.0,0.03]
[1731349444010,0.002,84410.0,84409.0,0.03]
[1731349444435,0.001,84412.0,84393.0,0.17754211]
[1731349444436,0.001,84412.0,84410.0,0.03]
[1731349444633,0.00236866,84411.0,84410.0,0.03]
[1731349444839,0.0018484,84412.0,84410.0,0.03]
[1731349445452,0.0018484,84412.0,84404.0,0.03]
[1731349445677,0.0018484,84412.0,84411.0,0.03]
[1731349446467,0.0018484,84412.0,84406.0,0.0323692]
[1731349446665,0.0018484,84412.0,84408.0,0.03]
[1731349446866,0.0018484,84412.0,84410.0,0.03]
[1731349449086,0.00236866,84423.0,84412.0,0.03]
[1731349449314,0.001699,84435.0,84422.0,0.03]
[1731349449519,0.17754211,84424.0,84422.0,0.14994075]
[1731349449747,0.001699,84435.0,84423.0,0.14801864]
[1731349450390,0.001699,84435.0,84425.0,0.03]
[1731349450604,0.001699,84435.0,84425.0,0.14994075]
[1731349452180,0.001699,84435.0,84425.0,0.19914617]
[1731349452436,0.001699,84435.0,84427.0,0.03]
[1731349452660,0.001699,84435.0,84429.0,0.03]
[1731349452879,0.001699,84435.0,84433.0,0.03]
[1731349453116,0.0016992,84448.0,84433.0,0.14994075]
[1731349453325,0.0016992,84448.0,84435.0,0.03]
[1731349453530,0.17754211,84443.0,84438.0,0.03]
[1731349453743,0.0016992,84448.0,84437.0,0.26521419]
[1731349453744,0.0016992,84448.0,84440.0,0.03]
[1731349456248,0.05,84444.0,84443.0,0.07887885]
[1731349457340,0.050848,84444.0,84443.0,0.07887885]
[1731349457735,0.050848,84444.0,84443.0,0.08676674]
[1731349458345,0.049048,84444.0,84443.0,0.08676674]
[1731349458753,0.050148,84444.0,84443.0,0.08676674]
[1731349459625,0.048148,84444.0,84443.0,0.08676674]
[1731349459854,0.050148,84444.0,84443.0,0.08676674]
[1731349460017,0.048148,84444.0,84443.0,0.08676674]
[1731349460230,0.04747545,84444.0,84443.0,0.08676674]
[1731349462299,0.04617545,84444.0,84443.0,0.08676674]
[1731349463530,0.04817545,84444.0,84443.0,0.08676674]
[1731349463748,0.04617545,84444.0,84443.0,0.08676674]
[1731349464388,0.04854411,84444.0,84443.0,0.08676674]
[1731349464618,0.002,84439.0,84414.0,0.0775]
[1731349465055,0.002,84439.0,84433.0,0.17754211]
[1731349465056,0.00236866,84439.0,84433.0,0.17754211]
[1731349465242,0.04617545,84444.0,84423.0,0.38515494]
[1731349465439,0.04617545,84444.0,84431.0,0.17754211]
[1731349465659,0.04617545,84444.0,84423.0,0.38515494]
[1731349465660,0.04617545,84444.0,84432.0,0.01775421]
[1731349465778,0.00236866,84443.0,84423.0,0.38515494]
[1731349467073,0.17754211,84438.0,84423.0,0.11994075]
[1731349467237,0.00236866,84443.0,84423.0,0.11994075]
[1731349467441,0.04617545,84444.0,84424.0,0.00236863]
[1731349467655,0.00236866,84443.0,84425.0,0.11994075]
[1731349469666,0.00236866,84443.0,84424.0,0.0016952]
[1731349469667,0.002,84434.0,84424.0,0.0016952]
[1731349469866,0.00236866,84443.0,84424.0,0.0016952]
[1731349470070,0.00436866,84443.0,84424.0,0.0016952]
[1731349470317,0.002,84435.0,84425.0,0.02283814]
[1731349470490,0.00236866,84434.0,84425.0,0.02283814]
[1731349470691,0.002,84436.0,84425.0,0.02283814]
[1731349470904,0.17754211,84434.0,84425.0,0.02283814]
[1731349471097,0.00236866,84433.0,84424.0,0.0016952]
[1731349471881,0.0883,84437.0,84424.0,0.0016952]
[1731349471882,0.002,84425.0,84424.0,0.0016952]
[1731349472033,0.00436866,84425.0,84424.0,0.0016952]
[1731349472250,0.00236866,84425.0,84424.0,0.0016952]
[1731349473288,0.00236866,84426.0,84424.0,0.0016952]
[1731349474269,0.002,84425.0,84424.0,0.0016952]
[1731349475141,0.012,84425.0,84424.0,0.0016952]
[1731349475296,0.01436866,84425.0,84424.0,0.0016952]
[1731349475498,0.00236866,84425.0,84424.0,0.0016952]
[1731349476290,0.00236866,84426.0,84424.0,0.0016952]
[1731349476917,0.00875556,84435.0,84424.0,0.0016952]
[1731349476918,0.00236866,84431.0,84424.0,0.0016952]
[1731349477347,0.002,84430.0,84424.0,0.0016952]
[1731349477564,0.00236866,84435.0,84424.0,0.0016952]
[1731349477565,0.002,84431.0,84424.0,0.0016952]
[1731349477792,0.00236866,84435.0,84424.0,0.0016952]
[1731349478211,0.00236866,84436.0,84424.0,0.0016952]
[1731349478427,0.002,84429.0,84424.0,0.0016952]
[1731349478631,0.002,84426.0,84424.0,0.0016952]
[1731349479681,0.002,84430.0,84424.0,0.0016952]
[1731349480259,0.17991077,84436.0,84424.0,0.0016952]
[1731349480679,0.002,84426.0,84424.0,0.0016952]
[1731349480895,0.002,84433.0,84424.0,0.0016952]
[1731349481116,0.002,84431.0,84424.0,0.0016952]
[1731349481371,0.002,84425.0,84424.0,0.0016952]
[1731349481576,0.002,84431.0,84424.0,0.0016952]
[1731349481757,0.00236866,84430.0,84424.0,0.0016952]
[1731349482607,0.002,84425.0,84424.0,0.0016952]
[1731349483057,0.00436866,84425.0,84424.0,0.0016952]
[1731349483820,0.00236866,84425.0,84424.0,0.0016952]
[1731349484036,0.00436866,84426.0,84424.0,0.0016952]
[1731349486014,0.00236866,84426.0,84424.0,0.0016952]
[1731349486708,0.002,84425.0,84424.0,0.0016952]
[1731349487345,0.17664075,84425.0,84424.0,0.0016952]
[1731349487539,0.26194075,84425.0,84424.0,0.0016952]
[1731349487763,0.27069909,84425.0,84424.0,0.0016952]
[1731349487960,0.27069909,84425.0,84412.0,0.04816784]
[1731349487961,0.007,84413.0,84412.0,0.04816784]
[1731349488193,0.007,84412.0,84404.0,0.17754211]
[1731349488402,0.12694075,84412.0,84404.0,0.17754211]
[1731349488579,0.12930941,84412.0,84411.0,0.05062631]
[1731349488733,0.12930941,84412.0,84411.0,0.0023]
[1731349489735,0.26540941,84412.0,84411.0,0.0023]
[1731349493243,0.32810293,84412.0,84411.0,0.0023]
[1731349493447,0.35748028,84412.0,84411.0,0.0023]
[1731349494051,0.35748028,84412.0,84411.0,0.0039956]
[1731349494983,0.035,84404.0,84403.0,0.001696]
[1731349495186,0.5498236,84404.0,84403.0,0.001696]
[1731349495389,0.53320095,84404.0,84403.0,0.001696]
[1731349498082,0.53318929,84404.0,84403.0,0.001696]
[1731349499404,0.60950822,84404.0,84403.0,0.001696]
[1731349499961,0.53318929,84404.0,84403.0,0.001696]
[1731349501013,0.53318996,84404.0,84403.0,0.001696]
[1731349501554,0.00539657,84383.0,84382.0,0.17754211]
[1731349501756,0.12770598,84383.0,84382.0,0.17754211]
[1731349501968,0.002,84368.0,84362.0,0.0819]
[1731349502175,0.002,84369.0,84362.0,0.0819]
[1731349502395,0.002,84368.0,84367.0,0.2259784]
[1731349502600,0.00236866,84374.0,84367.0,0.04843629]
[1731349502819,0.00236866,84374.0,84362.0,0.0819]
[1731349502820,0.00236866,84374.0,84368.0,0.01320331]
[1731349503224,0.00436866,84375.0,84368.0,0.01320331]
[1731349503665,0.002,84369.0,84368.0,0.01320331]
[1731349503900,0.002,84370.0,84368.0,0.01320331]
[1731349504322,0.002,84370.0,84369.0,0.00640385]
[1731349504744,0.002,84375.0,84369.0,0.00640385]
[1731349504952,0.00236866,84374.0,84369.0,0.00640385]
[1731349505075,0.00236866,84374.0,84363.0,0.05083519]
[1731349506217,0.002,84372.0,84363.0,0.05083519]
[1731349506853,0.00236866,84378.0,84363.0,0.05083519]
[1731349506854,0.002,84375.0,84363.0,0.05083519]
[1731349507100,0.00236866,84374.0,84363.0,0.05083519]
[1731349507556,0.17754211,84382.0,84363.0,0.05083519]
[1731349507557,0.00236866,84381.0,84369.0,0.00160343]
[1731349507779,0.00236866,84380.0,84369.0,0.00160343]
[1731349508183,0.00236866,84380.0,84368.0,0.00160343]
[1731349508465,0.00236866,84380.0,84364.0,0.13337461]
[1731349508466,0.00339657,84379.0,84364.0,0.01343386]
[1731349508690,0.00236866,84378.0,84364.0,0.01343386]
[1731349509033,0.002,84372.0,84363.0,0.05083519]
[1731349509252,0.00339657,84369.0,84363.0,0.05083519]
[1731349509462,0.002,84364.0,84363.0,0.05083519]
[1731349510604,0.00236866,84368.0,84363.0,0.05083519]
[1731349510723,0.00236866,84368.0,84363.0,0.05487567]
[1731349510924,0.0469,84386.0,84363.0,0.05487567]
[1731349510925,0.00236866,84377.0,84364.0,0.0754]
[1731349511142,0.00236866,84377.0,84365.0,0.01739386]
[1731349511924,0.00170128,84384.0,84365.0,0.01739386]
[1731349511925,0.00236866,84380.0,84366.0,0.00160343]
[1731349512054,0.17754211,84379.0,84366.0,0.00160343]
[1731349512259,0.00236866,84378.0,84366.0,0.00160343]
[1731349513698,0.00236866,84378.0,84366.0,0.17914554]
[1731349513902,0.00236866,84383.0,84369.0,0.00160343]
[1731349514106,0.17754211,84382.0,84369.0,0.00160343]
[1731349514314,0.17754211,84392.0,84364.0,0.0754]
[1731349514315,0.00236866,84381.0,84372.0,0.00160343]
[1731349514525,0.17754211,84392.0,84376.0,0.1242]
[1731349514526,0.00236866,84391.0,84376.0,0.1242]
[1731349514737,0.00236866,84391.0,84380.0,0.00160343]
[1731349515868,0.00236866,84391.0,84377.0,0.01258034]
[1731349516083,0.00236866,84391.0,84376.0,0.12360253]
[1731349516084,0.00339657,84389.0,84376.0,0.12360253]
[1731349516295,0.00170128,84379.0,84376.0,0.04780253]
[1731349516512,0.00170128,84379.0,84368.0,0.076]
[1731349516773,0.00236866,84383.0,84368.0,0.076]
[1731349516774,0.00170128,84375.0,84368.0,0.10168423]
[1731349516987,0.00236866,84374.0,84366.0,0.17754211]
[1731349517434,0.09375678,84383.0,84363.0,0.04932634]
[1731349517660,0.09375678,84383.0,84364.0,0.17754211]
[1731349517872,0.09375678,84383.0,84365.0,0.02671389]
[1731349518105,0.17754211,84383.0,84368.0,0.006696]
[1731349518534,0.17754211,84383.0,84368.0,0.001696]
[1731349518976,0.005,84389.0,84368.0,0.006696]
[1731349519195,0.11994075,84389.0,84369.0,0.01791094]
[1731349519443,0.000848,84404.0,84372.0,0.17754211]
[1731349519444,0.005,84398.0,84372.0,0.17754211]
[1731349519681,0.000848,84404.0,84372.0,0.17754211]
[1731349519682,0.000848,84404.0,84389.0,0.005]
[1731349519921,0.17754211,84396.0,84393.0,0.005]
[1731349520138,0.000848,84404.0,84393.0,0.005]
[1731349520384,0.000848,84404.0,84394.0,0.078]
[1731349520637,0.000848,84404.0,84395.0,0.17754211]
[1731349520843,0.000848,84404.0,84396.0,0.02555421]
[1731349521058,0.000848,84404.0,84394.0,0.078]
[1731349521305,0.4,84403.0,84393.0,0.04844643]
[1731349521522,0.4,84403.0,84386.0,0.0788]
[1731349522029,0.17754211,84402.0,84386.0,0.12695438]
[1731349522236,0.4,84396.0,84386.0,0.12695438]
[1731349522452,0.4,84396.0,84391.0,0.17754211]
[1731349522671,0.4,84396.0,84395.0,0.005]
[1731349522883,0.4,84396.0,84395.0,0.2809202]
[1731349523095,0.4,84396.0,84395.0,0.27364075]
[1731349523308,0.000848,84404.0,84395.0,0.27364075]
[1731349523309,0.000848,84404.0,84395.0,0.27850483]
[1731349523544,0.000848,84404.0,84402.0,0.005]
[1731349525758,0.000848,84404.0,84396.0,0.11994075]
[1731349525759,0.000848,84404.0,84396.0,0.12494075]
[1731349525983,0.000848,84404.0,84402.0,0.005]
[1731349526410,0.000848,84404.0,84396.0,0.12494075]
[1731349526630,0.000848,84404.0,84398.0,0.005]
[1731349526849,0.000848,84404.0,84397.0,0.01676075]
[1731349528772,0.000848,84404.0,84402.0,0.005]
[1731349528992,0.17754211,84403.0,84402.0,0.005]
[1731349529154,0.000848,84404.0,84402.0,0.005]
[1731349529497,0.000848,84404.0,84403.0,0.01417015]
[1731349529956,0.000848,84404.0,84384.0,0.023]
[1731349529957,0.005,84403.0,84384.0,0.023]
[1731349530137,0.005,84403.0,84385.0,0.11994075]
[1731349530367,0.005,84389.0,84381.0,0.04899121]
[1731349530546,0.005,84385.0,84368.0,0.0016964]
[1731349530976,0.005,84383.0,84368.0,0.0016964]
[1731349531193,0.005,84383.0,84369.0,0.11994075]
[1731349531804,0.005,84383.0,84368.0,0.04901614]
[1731349531805,0.005,84378.0,84368.0,0.04901614]
[1731349532007,0.005,84379.0,84368.0,0.04901614]
[1731349532925,0.005,84385.0,84369.0,0.00237026]
[1731349533168,0.17754211,84382.0,84369.0,0.00237026]
[1731349533559,0.005,84379.0,84369.0,0.00237026]
[1731349533746,0.005,84379.0,84368.0,0.12641614]
[1731349534157,0.17754211,84373.0,84368.0,0.12641614]
[1731349534356,0.17754211,84382.0,84368.0,0.12641614]
[1731349534357,0.005,84371.0,84368.0,0.04901614]
[1731349534662,0.18254211,84369.0,84368.0,0.04901614]
[1731349534850,0.005,84369.0,84368.0,0.04901614]
[1731349535218,0.407,84369.0,84368.0,0.04901614]
[1731349535795,0.405,84369.0,84368.0,0.04901614]
[1731349536246,0.005,84369.0,84368.0,0.04901614]
[1731349537324,0.405,84369.0,84368.0,0.04901614]
[1731349540216,0.005,84369.0,84368.0,0.04901614]
[1731349541231,0.405,84369.0,84368.0,0.04901614]
[1731349542163,0.4039,84369.0,84368.0,0.04901614]
[1731349542772,0.40366533,84369.0,84368.0,0.04901614]
[1731349543124,0.21802545,84369.0,84368.0,0.12631614]
[1731349543332,0.00451353,84379.0,84368.0,0.12631614]
[1731349543789,0.00451353,84379.0,84369.0,0.00237026]
[1731349544390,0.17754211,84378.0,84368.0,0.12631614]
[1731349544788,0.00366533,84372.0,84368.0,0.04901614]
[1731349545228,0.17754211,84378.0,84368.0,0.04901614]
[1731349545229,0.00366533,84369.0,84368.0,0.04901614]
[1731349545659,0.0008482,84379.0,84369.0,0.0807]
[1731349545865,0.0008482,84379.0,84371.0,0.023]
[1731349546074,0.4,84384.0,84377.0,0.26521419]
[1731349546310,0.17754211,84397.0,84379.0,0.0807]
[1731349546311,0.17754211,84388.0,84379.0,0.0807]
[1731349546530,0.13578212,84397.0,84380.0,0.1453106]
[1731349546756,0.17754211,84387.0,84380.0,0.14294075]
[1731349546995,0.13578212,84397.0,84380.0,0.14294075]
[1731349547680,0.13578212,84397.0,84380.0,0.19147365]
[1731349553310,0.17754211,84396.0,84385.0,0.0692]
[1731349553538,0.17754211,84396.0,84387.0,0.023]
[1731349553737,0.17754211,84396.0,84389.0,0.023]
[1731349553990,0.17754211,84396.0,84390.0,0.11994075]
[1731349554145,0.0008479,84397.0,84390.0,0.11994075]
[1731349554755,0.005,84404.0,84390.0,0.11994075]
[1731349555654,0.57754211,84407.0,84390.0,0.11994075]
[1731349556283,0.17754211,84407.0,84390.0,0.11994075]
[1731349557186,0.005,84413.0,84393.0,0.26521419]
[1731349557431,0.17754211,84416.0,84391.0,0.25561168]
[1731349557432,0.17404211,84416.0,84402.0,0.023]
[1731349557714,0.09070193,84416.0,84404.0,0.023]
[1731349557923,0.09070193,84416.0,84406.0,0.023]
[1731349558129,0.09070193,84416.0,84407.0,0.11994075]
[1731349558525,0.0008478,84426.0,84407.0,0.11994075]
[1731349558752,0.0008478,84426.0,84409.0,0.0772]
[1731349558913,0.0008478,84426.0,84410.0,0.11994075]
[1731349558914,0.17754211,84418.0,84410.0,0.11994075]
[1731349559132,0.0008478,84426.0,84410.0,0.11994075]
[1731349560008,0.005,84424.0,84407.0,0.04767515]
[1731349560206,0.005,84424.0,84407.0,0.11994075]
[1731349560720,0.17754211,84423.0,84407.0,0.11994075]
[1731349561230,0.0008478,84426.0,84409.0,0.023]
[1731349561433,0.17754211,84425.0,84411.0,0.023]
[1731349561647,0.17754211,84425.0,84412.0,0.11994075]
[1731349561794,0.17754211,84425.0,84413.0,0.01606286]
[1731349562007,0.17754211,84425.0,84414.0,0.11994075]
[1731349562209,0.005,84429.0,84414.0,0.11994075]
[1731349562426,0.17754211,84427.0,84415.0,0.0023689]
[1731349562681,0.17754211,84427.0,84416.0,0.11994075]
[1731349564061,0.17754211,84427.0,84402.0,0.17754211]
[1731349564264,0.17754211,84427.0,84416.0,0.04887249]
[1731349564265,0.003956,84417.0,84416.0,0.04887249]
[1731349564469,0.003956,84408.0,84392.0,0.0805]
[1731349564603,0.003956,84408.0,84401.0,0.04697099]
[1731349564864,0.003956,84408.0,84392.0,0.11994075]
[1731349565419,0.003956,84408.0,84394.0,0.17754211]
[1731349565637,0.003956,84408.0,84396.0,0.00026383]
[1731349565856,0.003956,84408.0,84397.0,0.11994075]
[1731349566059,0.18149811,84418.0,84398.0,0.00236937]
[1731349566261,0.17754211,84418.0,84404.0,0.0805]
[1731349566459,0.17754211,84418.0,84406.0,0.001044]
[1731349566705,0.17754211,84418.0,84407.0,0.11994075]
[1731349567090,0.17754211,84418.0,84401.0,0.001044]
[1731349567294,0.003956,84426.0,84401.0,0.12098475]
[1731349567295,0.4,84424.0,84401.0,0.12098475]
[1731349567526,0.17754211,84418.0,84401.0,0.12098475]
[1731349567894,0.17754211,84418.0,84405.0,0.001044]
[1731349568323,0.4,84424.0,84406.0,0.12231005]
[1731349568533,0.4,84424.0,84406.0,0.12257388]
[1731349568687,0.4,84424.0,84408.0,0.023]
[1731349568911,0.17754211,84418.0,84410.0,0.076]
[1731349569119,0.4,84424.0,84411.0,0.11994075]
[1731349569350,0.07754211,84427.0,84411.0,0.12098475]
[1731349570971,0.07754211,84427.0,84411.0,0.12062582]
[1731349571866,0.07754211,84427.0,84412.0,0.0023689]
[1731349572090,0.07754211,84427.0,84413.0,0.11994075]
[1731349572318,0.07754211,84427.0,84414.0,0.0023689]
[1731349572539,0.07754211,84427.0,84415.0,0.11994075]
[1731349572754,0.07754211,84427.0,84416.0,0.0023689]
[1731349572967,0.07754211,84427.0,84416.0,0.12230965]
[1731349573177,0.07754211,84427.0,84416.0,0.11994075]
[1731349573597,0.003956,84428.0,84416.0,0.11994075]
[1731349573819,0.0034631,84428.0,84416.0,0.11994075]
[1731349574479,0.17754211,84427.0,84416.0,0.11994075]
[1731349575376,0.0034631,84428.0,84416.0,0.11994075]
[1731349575577,0.0008479,84429.0,84416.0,0.11994075]
[1731349575794,0.0008479,84429.0,84417.0,0.00236889]
[1731349576111,0.0034631,84428.0,84417.0,0.00236889]
[1731349576322,0.0008479,84429.0,84417.0,0.00236889]
[1731349576454,0.0034631,84428.0,84416.0,0.11994075]
[1731349576661,0.17754211,84427.0,84413.0,0.04747257]
[1731349576851,0.0034631,84428.0,84407.0,0.0015369]
[1731349577065,0.0034631,84428.0,84413.0,0.17754211]
[1731349577272,0.0034631,84428.0,84414.0,0.12230982]
[1731349577696,0.17754211,84427.0,84414.0,0.12230982]
[1731349577908,0.17754211,84427.0,84414.0,0.11994075]
[1731349578811,0.00173617,84426.0,84414.0,0.12163595]
[1731349579031,0.17754211,84427.0,84414.0,0.0016952]
[1731349579249,0.0034631,84428.0,84414.0,0.0016952]
[1731349579455,0.00173617,84425.0,84414.0,0.0016952]
[1731349579677,0.00173617,84425.0,84414.0,0.04995652]
[1731349579907,0.0866631,84424.0,84414.0,0.04995652]
[1731349580103,0.0866631,84424.0,84414.0,0.0016952]
[1731349580322,0.0866631,84424.0,84415.0,0.17754211]
[1731349580323,0.4,84419.0,84415.0,0.17754211]
[1731349580536,0.4,84419.0,84414.0,0.0016952]
[1731349580773,0.4,84419.0,84414.0,0.0783952]
[1731349580986,0.4,84419.0,84415.0,0.11994075]
[1731349581404,0.0034631,84424.0,84415.0,0.11994075]
[1731349581602,0.07754211,84423.0,84415.0,0.11994075]
[1731349581831,0.07754211,84423.0,84414.0,0.0016952]
[1731349581962,0.0034631,84424.0,84414.0,0.0016952]
[1731349582194,0.0034631,84424.0,84414.0,0.04875611]
[1731349583864,0.00173617,84421.0,84414.0,0.04875611]
[1731349584225,0.0791,84423.0,84414.0,0.04875611]
[1731349584910,0.22514211,84422.0,84414.0,0.04875611]
[1731349585037,0.0034631,84415.0,84414.0,0.04875611]
[1731349585258,0.4034631,84415.0,84414.0,0.04875611]
[1731349586167,0.52514002,84415.0,84414.0,0.04875611]
[1731349587196,0.52514002,84415.0,84414.0,0.0016952]
[1731349587345,0.60034002,84415.0,84414.0,0.0016952]
[1731349587561,0.65124002,84415.0,84414.0,0.0016952]
[1731349587780,0.66221475,84415.0,84414.0,0.0016952]
[1731349587991,0.65713644,84415.0,84414.0,0.0016952]
[1731349588401,0.65116171,84415.0,84414.0,0.0016952]
[1731349589175,0.64616171,84415.0,84414.0,0.0016952]
[1731349590221,0.64442554,84415.0,84414.0,0.0016952]
[1731349591198,0.64616171,84415.0,84414.0,0.0016952]
[1731349594047,0.65116171,84415.0,84414.0,0.0016952]
[1731349594824,0.65116171,84415.0,84414.0,0.00196727]
[1731349595301,0.64616171,84415.0,84414.0,0.00196727]
[1731349595529,0.64442554,84415.0,84414.0,0.00196727]
[1731349596226,0.4,84419.0,84414.0,0.00196727]
[1731349596442,0.4,84419.0,84415.0,0.0776]
[1731349597039,0.4,84419.0,84415.0,0.1999098]
[1731349597263,0.00030701,84429.0,84415.0,0.1999098]
[1731349597494,0.00030701,84429.0,84428.0,0.0776]
[1731349597686,0.00030701,84429.0,84428.0,0.25414607]
[1731349597929,0.4,84442.0,84437.0,0.26701492]
[1731349598077,0.4,84442.0,84437.0,0.46429184]
[1731349598289,0.00056356,84444.0,84442.0,0.0015369]
[1731349598583,0.00056356,84444.0,84443.0,0.1223087]
[1731349598787,0.0034631,84463.0,84445.0,0.00026383]
[1731349598988,0.0034631,84463.0,84446.0,0.11994075]
[1731349598989,0.17754211,84450.0,84446.0,0.11994075]
[1731349599164,0.0034631,84463.0,84446.0,0.11994075]
[1731349600590,0.0034631,84463.0,84447.0,0.00263177]
[1731349600829,0.0034631,84463.0,84448.0,0.11994075]
[1731349600997,0.0034631,84463.0,84450.0,0.00026383]
[1731349601204,0.0034631,84463.0,84451.0,0.1223086]
[1731349602380,0.0008492,84467.0,84451.0,0.1223086]
[1731349602589,0.0034631,84463.0,84451.0,0.1223086]
[1731349602852,0.33783017,84468.0,84462.0,0.005]
[1731349603045,0.33783017,84468.0,84463.0,0.12230829]
[1731349603046,0.17754211,84467.0,84463.0,0.12230829]
[1731349603273,0.4,84492.0,84473.0,0.00026383]
[1731349603483,0.27760752,84492.0,84480.0,0.005]
[1731349603683,0.20929245,84492.0,84491.0,0.005]
[1731349603835,0.17681245,84492.0,84491.0,0.27021419]
[1731349604040,0.17681245,84492.0,84491.0,0.39015494]
[1731349604283,0.17754211,84503.0,84491.0,0.39015494]
[1731349604443,0.17754211,84503.0,84492.0,0.11994075]
[1731349604651,0.0002,84509.0,84492.0,0.11994075]
[1731349604652,0.0002,84509.0,84499.0,0.26521419]
[1731349604894,0.17754211,84508.0,84500.0,0.12230721]
[1731349605114,0.0002,84509.0,84500.0,0.12230721]
[1731349605567,0.0002,84509.0,84500.0,0.11994075]
[1731349606100,0.0002,84509.0,84501.0,0.17754211]
[1731349606301,0.0002,84509.0,84506.0,0.26521419]
[1731349606525,0.0002,84509.0,84507.0,0.11994075]
[1731349608175,0.0034631,84528.0,84508.0,0.08106383]